bitfinex/quotes_BTCUSD_20240717
["timestamp","ask_amount","ask_price","bid_price","bid_amount"]
[1721180296175,0.003,65997.0,65996.0,5.3561347]
[1721180296402,0.002,65997.0,65996.0,5.3991347]
[1721180296524,0.003,65997.0,65996.0,5.44986245]
[1721180297084,0.003,65997.0,65996.0,5.19823045]
[1721180297306,0.003,65997.0,65996.0,5.47594822]
[1721180297505,0.001,65997.0,65996.0,5.50167597]
[1721180297852,0.001,65997.0,65996.0,5.51567597]
[1721180298059,0.00361097,66021.0,66011.0,0.2]
[1721180298259,0.00084,66021.0,66020.0,2.00112674]
[1721180298513,0.00084,66021.0,66020.0,2.22690495]
[1721180298742,0.00084,66021.0,66020.0,4.10538165]
[1721180299321,0.00284,66021.0,66020.0,4.84604585]
[1721180299485,0.00284,66021.0,66020.0,3.73846036]
[1721180299685,0.00084,66021.0,66020.0,3.69779616]
[1721180299927,0.00084,66021.0,66020.0,3.57201795]
[1721180300123,0.00084,66021.0,66020.0,3.83753447]
[1721180300348,0.00084,66021.0,66020.0,2.89225847]
[1721180300586,0.00084,66021.0,66020.0,3.19519647]
[1721180300794,0.00084,66021.0,66020.0,3.49813447]
[1721180300943,0.00084,66021.0,66020.0,3.54813447]
[1721180301556,0.00084,66021.0,66020.0,2.74078947]
[1721180301756,0.00084,66021.0,66020.0,1.24078947]
[1721180301959,0.00084,66021.0,66020.0,1.69519647]
[1721180302161,0.00084,66021.0,66020.0,3.06943821]
[1721180302359,0.00084,66021.0,66020.0,1.56943821]
[1721180302971,0.00084,66021.0,66020.0,1.69519834]
[1721180303174,0.00084,66021.0,66020.0,1.56943821]
[1721180303572,0.00084,66021.0,66020.0,2.67595221]
[1721180303771,0.00084,66021.0,66020.0,3.83989987]
[1721180304050,0.00084,66021.0,66020.0,5.33989987]
[1721180304553,0.00084,66021.0,66020.0,5.33989818]
[1721180304758,0.00084,66021.0,66020.0,5.12319818]
[1721180304961,0.00084,66021.0,66020.0,5.82319818]
[1721180305917,0.00084,66021.0,66020.0,5.12319818]
[1721180306117,0.00084,66021.0,66020.0,5.82319818]
[1721180306329,0.00084,66021.0,66020.0,5.82319488]
[1721180307684,0.00084,66021.0,66020.0,6.03989488]
[1721180309288,0.00084,66021.0,66020.0,5.82319488]
[1721180309571,0.00084,66021.0,66020.0,5.82319303]
[1721180310495,0.00084,66021.0,66020.0,6.61319303]
[1721180310639,1e-08,66025.0,66020.0,6.61319303]
[1721180310640,1e-08,66025.0,66024.0,1.11022]
[1721180310840,1e-08,66025.0,66024.0,2.21334256]
[1721180311042,1e-08,66025.0,66024.0,2.21962286]
[1721180311265,1e-06,66034.0,66033.0,0.05]
[1721180311464,0.04944249,66038.0,66037.0,1.24363]
[1721180311637,0.00837,66053.0,66038.0,0.201427]
[1721180311863,0.00837,66053.0,66038.0,2.63568819]
[1721180312060,0.00837,66053.0,66038.0,4.14194681]
[1721180312490,0.00837,66053.0,66038.0,4.01620599]
[1721180312708,0.00837,66053.0,66038.0,4.14189809]
[1721180312932,0.00837,66053.0,66038.0,4.15978207]
[1721180313188,0.00837,66053.0,66038.0,4.15589809]
[1721180314373,0.00837,66053.0,66038.0,4.81335425]
[1721180314707,0.00837,66053.0,66038.0,4.83123823]
[1721180314932,0.00837,66053.0,66038.0,4.83961823]
[1721180315158,0.00837,66053.0,66038.0,6.04707323]
[1721180315358,0.00837,66053.0,66038.0,6.02918925]
[1721180315738,0.00837,66053.0,66038.0,6.02918368]
[1721180316301,0.00837,66053.0,66038.0,6.35332752]
[1721180316679,0.00837,66053.0,66038.0,6.15332752]
[1721180316905,0.00837,66053.0,66038.0,6.35332752]
[1721180317041,0.00837,66053.0,66038.0,6.32532752]
[1721180317418,1e-06,66050.0,66049.0,2.918232]
[1721180317549,0.00837,66053.0,66052.0,0.304895]
[1721180317550,1e-06,66053.0,66052.0,0.304895]
[1721180317755,1e-06,66053.0,66052.0,2.91146075]
[1721180317957,1e-06,66053.0,66052.0,5.39113413]
[1721180318199,1e-06,66053.0,66052.0,5.68392513]
[1721180318395,1e-06,66053.0,66052.0,5.90402513]
[1721180318622,1e-06,66053.0,66052.0,6.65402513]
[1721180318838,1e-06,66053.0,66052.0,6.04840573]
[1721180318982,1e-06,66053.0,66052.0,5.99937915]
[1721180319385,1e-06,66053.0,66052.0,6.01337915]
[1721180319852,1e-06,66053.0,66052.0,5.74327915]
[1721180320059,1e-06,66053.0,66052.0,5.68985851]
[1721180320471,1e-06,66053.0,66052.0,5.67197877]
[1721180320653,1e-06,66053.0,66052.0,4.97197877]
[1721180320863,1e-06,66053.0,66052.0,5.67197877]
[1721180321023,1e-06,66053.0,66052.0,5.68985988]
[1721180321217,1e-06,66053.0,66052.0,5.62880847]
[1721180321423,1e-06,66053.0,66052.0,5.67196908]
[1721180321633,0.00084,66059.0,66058.0,1.00691]
[1721180321804,0.00084,66059.0,66058.0,2.80996475]
[1721180322009,0.00084,66059.0,66058.0,3.11935171]
[1721180322338,0.00084,66059.0,66058.0,3.16251232]
[1721180322588,0.00084,66059.0,66058.0,4.66251232]
[1721180322970,0.00084,66059.0,66058.0,4.97927632]
[1721180323328,0.00084,66059.0,66058.0,4.69051232]
[1721180323882,0.00084,66059.0,66058.0,4.36474832]
[1721180324117,0.13814,66059.0,66058.0,1.26263469]
[1721180324286,0.13814,66059.0,66058.0,1.0890047]
[1721180324508,0.13814,66059.0,66058.0,0.73462296]
[1721180324853,0.13814,66059.0,66058.0,0.72062296]
[1721180325063,0.13814,66059.0,66058.0,0.73462296]
[1721180325413,0.13814,66059.0,66058.0,0.72062296]
[1721180325622,0.895037,66059.0,66058.0,0.70662296]
[1721180325822,0.895037,66059.0,66058.0,0.01362296]
[1721180325987,0.895037,66059.0,66058.0,0.017]
[1721180326194,0.895037,66059.0,66058.0,0.007]
[1721180326614,0.895037,66059.0,66058.0,0.012]
[1721180326809,0.895037,66059.0,66058.0,0.007]
[1721180327075,0.1409,66053.0,66044.0,0.2]
[1721180327246,0.00277097,66052.0,66045.0,0.7]
[1721180327471,0.292294,66053.0,66046.0,0.1]
[1721180327871,0.1409,66053.0,66047.0,0.00618516]
[1721180328382,0.0614,66053.0,66047.0,0.00618516]
[1721180328597,0.0795,66052.0,66047.0,0.00618516]
[1721180329185,0.0614,66051.0,66047.0,0.00818516]
[1721180329415,0.0614,66051.0,66047.0,0.01518516]
[1721180329559,0.0614,66051.0,66047.0,0.00618516]
[1721180329994,0.0614,66051.0,66047.0,0.01718516]
[1721180330374,0.0614,66051.0,66047.0,0.02021304]
[1721180330580,0.0614,66051.0,66047.0,0.01718516]
[1721180330757,0.0614,66051.0,66047.0,0.00918516]
[1721180331138,0.0614,66051.0,66047.0,0.00618516]
[1721180331584,0.0614,66051.0,66047.0,0.01018516]
[1721180332244,0.0614,66051.0,66047.0,0.17361989]
[1721180332456,0.0614,66051.0,66048.0,0.7]
[1721180332878,0.0614,66051.0,66049.0,0.00620549]
[1721180333222,0.0614,66051.0,66050.0,0.12571651]
[1721180333421,0.0614,66051.0,66050.0,0.83192075]
[1721180334005,0.0627,66056.0,66050.0,0.83192075]
[1721180334204,0.0627,66056.0,66051.0,0.12571749]
[1721180334465,0.0627,66056.0,66052.0,0.00620172]
[1721180334807,0.0627,66056.0,66052.0,0.7]
[1721180335021,0.0627,66056.0,66053.0,0.00620046]
[1721180335889,0.0627,66056.0,66053.0,0.70620046]
[1721180336468,0.0627,66056.0,66053.0,0.71420046]
[1721180337257,0.0831,66057.0,66054.0,0.22571404]
[1721180337458,0.0831,66057.0,66055.0,0.12571404]
[1721180337697,0.0831,66057.0,66056.0,0.12571404]
[1721180337953,0.00084,66059.0,66056.0,0.34669578]
[1721180338157,0.00837,66061.0,66060.0,1.051377]
[1721180338334,0.00837,66061.0,66060.0,2.60130103]
[1721180338502,0.00837,66061.0,66060.0,4.45675382]
[1721180338890,0.00837,66061.0,66060.0,4.40675382]
[1721180339096,0.00837,66062.0,66061.0,1.45877878]
[1721180339300,0.00837,66062.0,66061.0,2.05043781]
[1721180339532,0.00837,66062.0,66061.0,2.05671593]
[1721180339774,0.00837,66062.0,66061.0,2.10467291]
[1721180340448,0.00837,66062.0,66061.0,2.80467291]
[1721180340656,0.00837,66062.0,66061.0,2.96159159]
[1721180340850,0.00837,66062.0,66061.0,2.75656952]
[1721180341278,0.00837,66062.0,66061.0,2.8045265]
[1721180341654,0.00837,66062.0,66061.0,3.1427765]
[1721180341885,0.00837,66062.0,66061.0,3.20677548]
[1721180342079,0.00837,66062.0,66061.0,3.15881952]
[1721180342262,0.00837,66062.0,66061.0,2.45881952]
[1721180342456,0.00837,66062.0,66061.0,2.41241574]
[1721180342679,0.00837,66062.0,66061.0,4.56241574]
[1721180342879,0.00837,66062.0,66061.0,4.29468864]
[1721180343081,0.00837,66062.0,66061.0,4.56245216]
[1721180343303,0.00837,66062.0,66061.0,3.91245216]
[1721180343512,0.00837,66062.0,66061.0,4.61245216]
[1721180343741,0.00837,66062.0,66061.0,4.91520216]
[1721180343947,0.00837,66062.0,66061.0,4.93820216]
[1721180344150,0.00837,66062.0,66061.0,4.6813704]
[1721180344352,0.00837,66062.0,66061.0,4.28270216]
[1721180344917,0.00837,66062.0,66061.0,4.63545216]
[1721180345334,0.00837,66062.0,66061.0,3.88545216]
[1721180345459,0.00837,66062.0,66061.0,4.60334132]
[1721180346055,0.00837,66062.0,66061.0,4.60335206]
[1721180346256,0.00837,66062.0,66061.0,4.58035206]
[1721180346495,0.00837,66062.0,66061.0,4.39184508]
[1721180346903,0.00837,66062.0,66061.0,4.44184508]
[1721180347102,0.00837,66062.0,66061.0,4.39184508]
[1721180347382,0.00837,66062.0,66061.0,4.37395618]
[1721180347531,0.00837,66062.0,66061.0,4.44184508]
[1721180347737,0.00837,66062.0,66061.0,4.39184508]
[1721180347940,0.00837,66062.0,66061.0,4.44184508]
[1721180348148,0.00837,66062.0,66061.0,4.42395618]
[1721180348344,0.00837,66062.0,66061.0,4.44184508]
[1721180349112,0.00837,66062.0,66061.0,5.56516316]
[1721180349313,0.00837,66062.0,66061.0,5.56514257]
[1721180349459,0.00837,66062.0,66061.0,5.86789257]
[1721180349656,4e-05,66070.0,66064.0,1.109576]
[1721180349821,4e-05,66070.0,66064.0,2.70385145]
[1721180350024,4e-05,66070.0,66064.0,2.5215817]
[1721180350230,4e-05,66070.0,66064.0,4.0215817]
[1721180351120,4e-05,66070.0,66064.0,4.8515817]
[1721180351325,4e-05,66070.0,66064.0,4.6108457]
[1721180351529,4e-05,66070.0,66064.0,3.82676394]
[1721180351677,4e-05,66070.0,66064.0,4.52676394]
[1721180352053,4e-05,66070.0,66064.0,4.54076394]
[1721180352267,4e-05,66070.0,66064.0,5.70349994]
[1721180352443,4e-05,66070.0,66064.0,5.70737812]
[1721180352601,4e-05,66070.0,66064.0,5.70349678]
[1721180352810,0.0170561,66065.0,66064.0,5.71749678]
[1721180353196,4e-05,66070.0,66069.0,1.309495]
[1721180353502,4e-05,66070.0,66069.0,2.46466826]
[1721180353817,4e-05,66070.0,66069.0,3.96466755]
[1721180355447,4e-05,66070.0,66069.0,3.85300834]
[1721180355652,4e-05,66070.0,66069.0,4.69266759]
[1721180355887,4e-05,66070.0,66069.0,4.64674935]
[1721180356302,4e-05,66070.0,66069.0,4.65544277]
[1721180358785,4e-05,66070.0,66069.0,4.52978352]
[1721180358958,4e-05,66070.0,66069.0,4.65543988]
[1721180359674,4e-05,66070.0,66069.0,4.70135812]
[1721180359876,4e-05,66070.0,66069.0,2.82972688]
[1721180361928,4e-05,66070.0,66069.0,2.82972626]
[1721180363377,4e-05,66070.0,66069.0,3.97543926]
[1721180363879,4e-05,66070.0,66069.0,5.47543926]
[1721180364984,4e-05,66070.0,66069.0,4.65543926]
[1721180365178,4e-05,66070.0,66069.0,5.43543503]
[1721180365585,4e-05,66070.0,66069.0,5.38543503]
[1721180365993,4e-05,66070.0,66069.0,5.43543503]
[1721180367403,4e-05,66070.0,66069.0,5.62391745]
[1721180368226,4e-05,66070.0,66069.0,5.65530821]
[1721180368426,4e-05,66070.0,66069.0,5.78095326]
[1721180368617,4e-05,66070.0,66069.0,5.84377417]
[1721180369450,4e-05,66070.0,66069.0,5.62389613]
[1721180369658,4e-05,66070.0,66069.0,5.78095202]
[1721180370485,4e-05,66070.0,66069.0,5.62389613]
[1721180371096,4e-05,66070.0,66069.0,5.84377427]
[1721180371277,4e-05,66070.0,66069.0,5.66981437]
[1721180371559,4e-05,66070.0,66069.0,4.84389749]
[1721180372264,0.00088,66070.0,66069.0,4.84389749]
[1721180372415,0.00088,66070.0,66069.0,5.67389749]
[1721180373205,0.00088,66070.0,66069.0,5.60389749]
[1721180373402,0.00088,66070.0,66069.0,5.66450449]
[1721180374015,0.00088,66070.0,66069.0,4.90450449]
[1721180374312,0.00088,66070.0,66069.0,6.08427223]
[1721180374537,0.00088,66070.0,66069.0,5.86375826]
[1721180374794,0.04953308,66084.0,66071.0,1.109464]
[1721180374963,0.04953308,66084.0,66071.0,3.79671155]
[1721180375185,0.04953308,66084.0,66071.0,3.99159389]
[1721180375314,1e-06,66072.0,66071.0,4.37522478]
[1721180375513,1e-06,66072.0,66071.0,5.94177857]
[1721180375729,1e-06,66072.0,66071.0,5.87522478]
[1721180375945,0.00836,66087.0,66086.0,2.009222]
[1721180376166,0.00836,66087.0,66086.0,3.11224657]
[1721180376389,0.00836,66087.0,66086.0,3.15997555]
[1721180376622,0.00836,66087.0,66086.0,3.13544087]
[1721180376801,0.00836,66087.0,66086.0,4.61759012]
[1721180377439,0.00836,66087.0,66086.0,4.56759012]
[1721180377650,0.00836,66087.0,66086.0,1.96731229]
[1721180377835,0.00836,66087.0,66086.0,2.07863404]
[1721180378137,0.08656,66087.0,66086.0,2.77863404]
[1721180378316,0.14656,66087.0,66086.0,2.77863404]
[1721180379887,4e-05,66090.0,66087.0,1.175708]
[1721180380050,4e-05,66090.0,66087.0,3.65680491]
[1721180380254,4e-05,66090.0,66087.0,5.20650738]
[1721180380462,0.00837,66106.0,66105.0,1.403822]
[1721180380615,0.00837,66106.0,66105.0,2.30311678]
[1721180380844,0.00837,66106.0,66105.0,2.30298203]
[1721180381020,0.00837,66106.0,66105.0,3.60807803]
[1721180381223,0.00837,66106.0,66105.0,3.41971639]
[1721180381424,0.00837,66106.0,66105.0,3.13500394]
[1721180381641,0.00837,66106.0,66105.0,3.11716839]
[1721180382547,0.00837,66106.0,66105.0,3.13500467]
[1721180382753,0.00837,66106.0,66105.0,3.14900467]
[1721180382954,0.00841,66106.0,66105.0,2.46176581]
[1721180383167,0.00841,66106.0,66105.0,2.05031381]
[1721180383471,0.00841,66106.0,66105.0,2.46176581]
[1721180383887,0.00841,66106.0,66105.0,2.47578112]
[1721180384303,0.00841,66106.0,66105.0,1.76178112]
[1721180384628,0.00841,66106.0,66105.0,2.48978112]
[1721180384836,0.00841,66106.0,66105.0,2.47578112]
[1721180385045,0.00841,66106.0,66105.0,2.17323312]
[1721180385217,0.00841,66106.0,66105.0,1.52195912]
[1721180385218,0.14821,66106.0,66105.0,1.52195912]
[1721180385397,0.14821,66106.0,66105.0,1.32195912]
[1721180385598,0.14821,66106.0,66105.0,1.52195912]
[1721180386014,0.14821,66106.0,66105.0,1.50795912]
[1721180386207,0.14821,66106.0,66105.0,2.03595912]
[1721180386629,0.08701,66106.0,66105.0,2.79232912]
[1721180386982,0.00841,66106.0,66105.0,2.66673938]
[1721180387130,0.00841,66106.0,66105.0,2.18723692]
[1721180387290,0.00841,66106.0,66105.0,2.48978492]
[1721180387489,0.00841,66106.0,66105.0,2.03596292]
[1721180387739,0.00841,66106.0,66105.0,2.48978492]
[1721180390239,0.00841,66106.0,66105.0,2.48979003]
[1721180391435,0.00841,66106.0,66105.0,2.55037303]
[1721180392678,0.00841,66106.0,66105.0,2.85292103]
[1721180392897,0.00841,66106.0,66105.0,3.22846903]
[1721180393261,0.00841,66106.0,66105.0,3.22845528]
[1721180393482,0.00841,66106.0,66105.0,3.20045528]
[1721180393648,0.00841,66106.0,66105.0,3.18645528]
[1721180393849,0.00841,66106.0,66105.0,3.20045528]
[1721180394087,0.00841,66106.0,66105.0,3.18645528]
[1721180395235,0.00841,66106.0,66105.0,4.70045528]
[1721180396064,0.00841,66106.0,66105.0,4.71445528]
[1721180396258,0.00841,66106.0,66105.0,4.58887038]
[1721180396460,0.00841,66106.0,66105.0,4.70045145]
[1721180397152,0.00841,66106.0,66105.0,4.71445145]
[1721180397360,0.00841,66106.0,66105.0,4.70045145]
[1721180397535,0.00841,66106.0,66105.0,4.71445145]
[1721180399349,0.00841,66106.0,66105.0,4.58887038]
[1721180399552,0.00841,66106.0,66105.0,4.71445205]
[1721180399973,0.00841,66106.0,66105.0,4.71445208]
[1721180401873,0.07351,66106.0,66105.0,2.13713612]
[1721180402100,0.07351,66106.0,66105.0,2.83891555]
[1721180402348,0.00841,66106.0,66105.0,3.19146355]
[1721180402993,0.00841,66106.0,66105.0,3.16346355]
[1721180403197,0.00841,66106.0,66105.0,3.15046355]
[1721180403401,0.00841,66106.0,66105.0,3.16446355]
[1721180403558,0.00841,66106.0,66105.0,3.15046355]
[1721180404262,0.00841,66106.0,66105.0,3.18231573]
[1721180404471,0.00841,66106.0,66105.0,3.21446355]
[1721180404668,0.00841,66106.0,66105.0,4.66538755]
[1721180404908,0.00841,66106.0,66105.0,4.85377731]
[1721180405118,0.00841,66106.0,66105.0,4.66537843]
[1721180405326,0.00841,66106.0,66105.0,4.71537843]
[1721180405547,0.00841,66106.0,66105.0,4.90375451]
[1721180405737,0.00841,66106.0,66105.0,4.71537843]
[1721180406246,0.00841,66106.0,66105.0,3.33728243]
[1721180406483,0.15161,66106.0,66105.0,1.28346043]
[1721180406690,0.302882,66106.0,66100.0,0.2]
[1721180406910,0.00841,66106.0,66105.0,0.00536849]
[1721180407130,0.00841,66106.0,66105.0,0.15438174]
[1721180407351,0.15161,66106.0,66105.0,0.0045262]
[1721180407555,0.15161,66106.0,66105.0,0.0185262]
[1721180407756,0.302882,66106.0,66105.0,0.014]
[1721180407930,0.15161,66106.0,66105.0,0.014]
[1721180408132,0.15161,66106.0,66105.0,0.003]
[1721180408133,0.605426,66106.0,66105.0,0.003]
[1721180408306,0.90797,66106.0,66105.0,0.003]
[1721180408833,0.605426,66106.0,66105.0,0.003]
[1721180409379,0.302575,66100.0,66093.0,0.4731]
[1721180409579,0.1432,66096.0,66093.0,0.4731]
[1721180409882,0.0795,66096.0,66093.0,0.4731]
[1721180410083,0.1432,66094.0,66093.0,0.4731]
[1721180410290,0.1432,66094.0,66093.0,0.4776721]
[1721180410702,0.899697,66094.0,66093.0,0.4776721]
[1721180410903,0.899697,66094.0,66093.0,0.4821]
[1721180411151,0.899697,66094.0,66093.0,0.4866721]
[1721180411366,0.1432,66094.0,66093.0,0.4776721]
[1721180411755,0.1432,66094.0,66093.0,0.4826721]
[1721180411903,0.597098,66094.0,66093.0,0.4781]
[1721180412105,0.899697,66094.0,66093.0,0.4826857]
[1721180412507,0.899697,66094.0,66093.0,0.4966857]
[1721180412707,0.899697,66094.0,66093.0,0.0235857]
[1721180412914,0.899697,66094.0,66093.0,0.0045857]
[1721180413224,0.151311,66089.0,66081.0,0.1]
[1721180413433,0.1483,66088.0,66081.0,0.1]
[1721180413619,0.1483,66088.0,66082.0,0.00460182]
[1721180414605,0.1483,66088.0,66083.0,0.15438174]
[1721180414977,0.1483,66088.0,66084.0,0.10459889]
[1721180415145,0.1493,66088.0,66085.0,0.15438174]
[1721180415350,0.1493,66088.0,66086.0,0.00459596]
[1721180416096,0.1493,66088.0,66086.0,0.00452333]
[1721180416297,0.1483,66088.0,66086.0,0.00452333]
[1721180417107,0.1493,66088.0,66086.0,0.01052333]
[1721180417307,0.1493,66088.0,66086.0,0.00452333]
[1721180417308,0.1483,66088.0,66086.0,0.00452333]
[1721180417742,0.1483,66088.0,66086.0,0.00552333]
[1721180418375,0.1483,66088.0,66086.0,0.00452333]
[1721180418721,0.1483,66088.0,66087.0,0.15438174]
[1721180418947,0.1483,66088.0,66087.0,0.35901918]
[1721180419593,0.1493,66088.0,66087.0,0.35901918]
[1721180419974,0.1493,66088.0,66087.0,0.21063744]
[1721180420155,0.002,66088.0,66087.0,0.81896518]
[1721180420359,0.002,66088.0,66087.0,2.41896518]
[1721180420578,0.002,66088.0,66087.0,2.41996518]
[1721180420963,0.002,66088.0,66087.0,0.46601918]
[1721180421445,1.116365,66088.0,66087.0,0.01163744]
[1721180421808,0.151347,66073.0,66072.0,0.533716]
[1721180422007,0.1418,66073.0,66072.0,0.060616]
[1721180422215,0.293147,66073.0,66072.0,0.00470654]
[1721180422420,0.595842,66073.0,66072.0,0.00470654]
[1721180422624,0.0757,66071.0,66069.0,0.2]
[1721180422837,0.227052,66071.0,66069.0,0.2]
[1721180423044,0.151354,66070.0,66069.0,0.2]
[1721180423419,0.293154,66070.0,66069.0,0.2]
[1721180423805,0.45409,66066.0,66060.0,0.533727]
[1721180424050,0.151363,66066.0,66060.0,0.533727]
[1721180424259,0.151363,66066.0,66065.0,0.00564939]
[1721180424450,0.151363,66066.0,66065.0,0.000924]
[1721180424648,0.151363,66066.0,66065.0,0.00568772]
[1721180424870,0.151361,66068.0,66065.0,0.000924]
[1721180425065,0.151362,66067.0,66065.0,0.00568772]
[1721180425258,0.151362,66067.0,66065.0,0.000924]
[1721180425479,0.151362,66067.0,66066.0,0.00476196]
[1721180427643,0.1379,66069.0,66066.0,0.00776196]
[1721180427853,0.001,66067.0,66066.0,0.00776196]
[1721180428282,0.001,66067.0,66066.0,0.003]
[1721180428488,0.1379,66069.0,66066.0,0.003]
[1721180429535,0.1379,66069.0,66065.0,0.000924]
[1721180430138,0.1379,66069.0,66066.0,0.002]
[1721180430396,0.289257,66069.0,66066.0,0.002]
[1721180430597,0.292257,66069.0,66065.0,0.000924]
[1721180431050,0.1409,66069.0,66065.0,0.000924]
[1721180431225,0.1379,66069.0,66065.0,0.000924]
[1721180431421,0.292258,66069.0,66066.0,0.00476196]
[1721180431624,0.1409,66069.0,66065.0,0.000924]
[1721180432367,0.1409,66069.0,66066.0,0.00595668]
[1721180432747,0.1409,66069.0,66065.0,0.000924]
[1721180432947,0.1379,66069.0,66065.0,0.000924]
[1721180433104,0.1409,66069.0,66065.0,0.000924]
[1721180433916,0.151363,66066.0,66065.0,0.000924]
[1721180434143,0.151363,66067.0,66065.0,0.000924]
[1721180434863,0.1409,66069.0,66065.0,0.000924]
[1721180435278,0.45409,66066.0,66065.0,0.000924]
[1721180436027,0.151363,66066.0,66065.0,0.000924]
[1721180436816,0.151363,66066.0,66065.0,0.003924]
[1721180437281,0.151363,66066.0,66065.0,0.000924]
[1721180437486,0.151363,66066.0,66065.0,0.004924]
[1721180437934,0.505258,66069.0,66065.0,0.004924]
[1721180438048,0.1379,66069.0,66065.0,0.004924]
[1721180438681,0.1379,66069.0,66065.0,0.000924]
[1721180440083,0.1409,66069.0,66065.0,0.000924]
[1721180440291,0.003,66069.0,66066.0,0.23155653]
[1721180440515,0.003,66069.0,66067.0,0.00596036]
[1721180441112,0.1423,66075.0,66067.0,0.00596036]
[1721180441516,0.003,66069.0,66067.0,0.00596036]
[1721180441720,0.003,66069.0,66067.0,0.00796036]
[1721180441914,0.1423,66075.0,66067.0,0.00796036]
[1721180442155,0.1423,66075.0,66067.0,0.00596036]
[1721180442313,0.1483,66075.0,66067.0,0.00696036]
[1721180442716,0.1483,66075.0,66067.0,0.00596036]
[1721180442919,0.151354,66071.0,66065.0,0.000924]
[1721180443916,0.151354,66070.0,66067.0,0.001]
[1721180444371,0.302696,66073.0,66067.0,0.001]
[1721180444510,0.153353,66071.0,66068.0,0.00596039]
[1721180444734,0.151353,66071.0,66068.0,0.00596039]
[1721180444935,0.151349,66073.0,66068.0,0.00596039]
[1721180445157,0.005,66070.0,66065.0,0.000924]
[1721180445364,0.005,66070.0,66066.0,0.00596268]
[1721180445802,0.002,66070.0,66066.0,0.00596268]
[1721180446920,0.005,66071.0,66066.0,0.00596268]
[1721180447428,0.1423,66075.0,66066.0,0.00596268]
[1721180447429,0.293644,66075.0,66066.0,0.00596268]
[1721180447648,0.003,66070.0,66066.0,0.00596268]
[1721180448211,0.293644,66075.0,66066.0,0.00596268]
[1721180448438,0.006,66071.0,66066.0,0.00596268]
[1721180448642,0.005,66071.0,66066.0,0.00596268]
[1721180449002,0.1423,66075.0,66066.0,0.00596268]
[1721180449324,0.003,66070.0,66066.0,0.00596268]
[1721180449520,0.003,66070.0,66066.0,0.00898963]
[1721180449906,0.003,66070.0,66066.0,0.00596268]
[1721180450326,0.003,66070.0,66067.0,0.00596154]
[1721180450524,0.00277097,66074.0,66064.0,0.1]
[1721180450726,0.00277097,66074.0,66065.0,0.16077164]
[1721180450963,0.005,66071.0,66065.0,0.16077164]
[1721180451359,0.1423,66075.0,66065.0,0.16077164]
[1721180451556,0.00277097,66074.0,66065.0,0.16077164]
[1721180451874,0.008,66074.0,66065.0,0.16077164]
[1721180452283,0.00277097,66074.0,66065.0,0.16077164]
[1721180452452,0.005,66071.0,66065.0,0.16077164]
[1721180453273,0.006,66071.0,66065.0,0.16077164]
[1721180453730,0.001,66071.0,66065.0,0.16077164]
[1721180454273,0.001,66071.0,66066.0,0.06402696]
[1721180454478,0.001,66071.0,66070.0,0.2]
[1721180454679,0.001,66071.0,66070.0,1.20876239]
[1721180454883,0.001,66071.0,66070.0,1.31514575]
[1721180455141,0.001,66071.0,66070.0,1.1607651]
[1721180455296,0.006,66071.0,66070.0,1.1607651]
[1721180456313,0.520756,66071.0,66070.0,0.00638336]
[1721180456497,0.0773,66070.0,66053.0,0.72372039]
[1721180456685,0.0773,66070.0,66054.0,0.21501374]
[1721180456686,0.216,66064.0,66054.0,0.21501374]
[1721180456845,0.367368,66064.0,66055.0,0.00594421]
[1721180457043,0.05818932,66063.0,66055.0,0.00594421]
[1721180458073,0.05818932,66063.0,66055.0,0.10594421]
[1721180458690,0.05818932,66063.0,66055.0,0.10894421]
[1721180458895,0.2963,66060.0,66055.0,0.00894421]
[1721180459093,0.601059,66056.0,66055.0,0.00894421]
[1721180459309,0.454221,66047.0,66040.0,0.060646]
[1721180459513,0.757105,66041.0,66040.0,0.060646]
[1721180459858,0.96298388,66041.0,66040.0,0.06578627]
[1721180460182,0.36026062,66041.0,66028.0,0.4731]
[1721180460379,0.216,66039.0,66028.0,0.4731]
[1721180460611,0.15144,66033.0,66028.0,0.4731]
[1721180461707,0.216,66039.0,66029.0,0.15438174]
[1721180461930,0.15144,66033.0,66028.0,0.4731]
[1721180462149,0.151435,66035.0,66029.0,0.1]
[1721180462590,0.1526,66041.0,66029.0,0.1]
[1721180462591,0.151438,66034.0,66029.0,0.1]
[1721180463575,0.003,66033.0,66029.0,0.1]
[1721180463958,0.151436,66035.0,66029.0,0.1]
[1721180464181,0.151432,66037.0,66029.0,0.102]
[1721180464350,0.002,66034.0,66029.0,0.1]
[1721180464551,0.002,66034.0,66026.0,0.109196]
[1721180464754,0.00277097,66038.0,66029.0,0.001]
[1721180464950,0.00277097,66040.0,66029.0,0.15841036]
[1721180465183,0.002,66033.0,66030.0,0.23388174]
[1721180465358,0.002,66033.0,66031.0,0.1]
[1721180465550,0.002,66033.0,66032.0,0.15438174]
[1721180466739,0.005,66037.0,66032.0,0.15438174]
[1721180466915,0.156431,66037.0,66032.0,0.00478358]
[1721180467052,0.005,66037.0,66032.0,0.00878358]
[1721180467892,0.151428,66038.0,66032.0,0.00478358]
[1721180468069,0.001,66037.0,66032.0,0.00478358]
[1721180468289,0.001,66037.0,66028.0,0.1]
[1721180468462,0.001,66037.0,66033.0,0.00478228]
[1721180468661,0.001,66037.0,66028.0,0.1]
[1721180468887,0.001,66037.0,66034.0,0.00478097]
[1721180469090,0.001,66037.0,66032.0,0.000924]
[1721180469091,0.15243,66037.0,66032.0,0.000924]
[1721180469312,0.15243,66037.0,66035.0,0.00477966]
[1721180469313,0.151432,66036.0,66035.0,0.00477966]
[1721180469518,0.151439,66033.0,66032.0,0.000924]
[1721180469718,0.757195,66033.0,66032.0,0.000924]
[1721180470497,1.200273,66033.0,66032.0,0.000924]
[1721180470697,0.757265,66027.0,66026.0,0.009196]
[1721180470902,0.3562,66027.0,66026.0,0.009196]
[1721180471112,0.00277097,66032.0,66026.0,0.009196]
[1721180471113,0.366491,66031.0,66026.0,0.009196]
[1721180471317,0.151448,66029.0,66026.0,0.009196]